fUST/lending_fUST_20260509
["ID","MTS","AMOUNT","RATE_DAILY","PERIOD"]
[421891711,1778301039000,-500.0,0.00012997,2]
[421891718,1778301039000,-1000.0,0.00012997,2]
[421891719,1778301039000,-500.0,0.00012997,2]
[421891715,1778301039000,-500.0,0.00012997,2]
[421891716,1778301039000,-500.0,0.00012997,2]
[421891733,1778301039000,-500.0,0.00012997,2]
[421891720,1778301039000,-500.0,0.00012997,2]
[421891739,1778301039000,-500.0,0.00012997,2]
[421891747,1778301039000,-500.0,0.00012997,2]
[421891742,1778301039000,-500.0,0.00012997,2]
[421891766,1778301039000,-500.0,0.00012997,2]
[421891771,1778301039000,-500.0,0.00012997,2]
[421891772,1778301039000,-500.0,0.00012997,2]
[421891767,1778301039000,-500.0,0.00012997,2]
[421891769,1778301039000,-524.23,0.00012997,2]
[421891768,1778301039000,-500.0,0.00012997,2]
[421891765,1778301039000,-500.0,0.00012997,2]
[421891770,1778301039000,-500.0,0.00012997,2]
[421891773,1778301039000,-500.0,0.00012997,2]
[421891776,1778301039000,-500.0,0.00012997,2]
[421891775,1778301039000,-412.88021733,0.00012997,2]
[421891774,1778301039000,-500.0,0.00012997,2]
[421891777,1778301039000,-500.0,0.00012997,2]
[421891778,1778301039000,-501.90645368,0.00012997,2]
[421891704,1778301039000,-500.0,0.00012996,2]
[421891762,1778301039000,-500.0,0.00012997,2]
[421891741,1778301039000,-500.0,0.00012997,2]
[421891761,1778301039000,-265.07465458,0.00012997,2]
[421891764,1778301039000,-500.0,0.00012997,2]
[421891745,1778301039000,-500.0,0.00012997,2]
[421891744,1778301039000,-500.0,0.00012997,2]
[421891743,1778301039000,-459.47754598,0.00012997,2]
[421891748,1778301039000,-500.0,0.00012997,2]
[421891758,1778301039000,-500.0,0.00012997,2]
[421891751,1778301039000,-500.0,0.00012997,2]
[421891759,1778301039000,-581.07,0.00012997,2]
[421891749,1778301039000,-500.0,0.00012997,2]
[421891754,1778301039000,-500.0,0.00012997,2]
[421891750,1778301039000,-500.0,0.00012997,2]
[421891755,1778301039000,-500.0,0.00012997,2]
[421891752,1778301039000,-500.0,0.00012997,2]
[421891753,1778301039000,-500.0,0.00012997,2]
[421891756,1778301039000,-500.0,0.00012997,2]
[421891760,1778301039000,-500.0,0.00012997,2]
[421891763,1778301039000,-1431.6872,0.00012997,2]
[421891757,1778301039000,-500.0,0.00012997,2]
[421891707,1778301039000,-500.0,0.00012997,2]
[421891703,1778301039000,-500.0,0.00012996,2]
[421891675,1778301039000,-500.0,0.00012996,2]
[421891681,1778301039000,-1229.93,0.00012996,2]
[421891677,1778301039000,-500.0,0.00012996,2]
[421891682,1778301039000,-500.0,0.00012996,2]
[421891683,1778301039000,-500.0,0.00012996,2]
[421891679,1778301039000,-500.0,0.00012996,2]
[421891678,1778301039000,-500.0,0.00012996,2]
[421891680,1778301039000,-500.0,0.00012996,2]
[421891684,1778301039000,-500.0,0.00012996,2]
[421891674,1778301039000,-159.97309173,0.00012996,2]
[421891671,1778301039000,-237.28289364,0.00011388,2]
[421891672,1778301039000,-651.32345922,0.00012,2]
[421891670,1778301039000,-346.81006182,0.00011277,2]
[421891669,1778301039000,-820.992352,0.00011277,2]
[421891702,1778301039000,-500.0,0.00012996,2]
[421891676,1778301039000,-500.0,0.00012996,2]
[421891686,1778301039000,-500.0,0.00012996,2]
[421891673,1778301039000,-173.366,0.000129,2]
[421891697,1778301039000,-500.0,0.00012996,2]
[421891696,1778301039000,-500.0,0.00012996,2]
[421891701,1778301039000,-500.0,0.00012996,2]
[421891700,1778301039000,-500.0,0.00012996,2]
[421891698,1778301039000,-500.0,0.00012996,2]
[421891699,1778301039000,-500.0,0.00012996,2]
[421891693,1778301039000,-500.0,0.00012996,2]
[421891695,1778301039000,-500.0,0.00012996,2]
[421891709,1778301039000,-184.88967149,0.00012997,2]
[421891692,1778301039000,-500.0,0.00012996,2]
[421891685,1778301039000,-500.0,0.00012996,2]
[421891688,1778301039000,-500.0,0.00012996,2]
[421891690,1778301039000,-500.0,0.00012996,2]
[421891689,1778301039000,-500.0,0.00012996,2]
[421891691,1778301039000,-500.0,0.00012996,2]
[421891694,1778301039000,-500.0,0.00012996,2]
[421891687,1778301039000,-500.0,0.00012996,2]
[421891798,1778301040000,-500.0,0.00012997,2]
[421891790,1778301040000,-204.5246928,0.00012997,2]
[421891794,1778301040000,-623.58492948,0.00012997,2]
[421891791,1778301040000,-500.0,0.00012997,2]
[421891795,1778301040000,-500.0,0.00012997,2]
[421891793,1778301040000,-500.0,0.00012997,2]
[421891789,1778301040000,-500.0,0.00012997,2]
[421891792,1778301040000,-164.72209891,0.00012997,2]
[421891788,1778301040000,-614.29137488,0.00012997,2]
[421891784,1778301040000,-502.37271605,0.00012997,2]
[421891796,1778301040000,-500.0,0.00012997,2]
[421891787,1778301040000,-500.0,0.00012997,2]
[421891782,1778301040000,-501.2808006,0.00012997,2]
[421891785,1778301040000,-500.0,0.00012997,2]
[421891781,1778301040000,-500.0,0.00012997,2]
[421891783,1778301040000,-618.71154885,0.00012997,2]
[421891780,1778301040000,-502.15481695,0.00012997,2]
[421891779,1778301040000,-502.40648648,0.00012997,2]
[421891799,1778301040000,-346.33909023,0.00012997,2]
[421891797,1778301040000,-500.0,0.00012997,2]
[421891807,1778301040000,-358.77271058,0.00012997,2]
[421891786,1778301040000,-500.0,0.00012997,2]
[421891801,1778301040000,-500.0,0.00012997,2]
[421891823,1778301040000,-683204.47143916,0.00013,2]
[421891821,1778301040000,-500.0,0.00012999,2]
[421891819,1778301040000,-772.68424487,0.00012999,2]
[421891822,1778301040000,-214.29962837,0.00012999,2]
[421891820,1778301040000,-232.64834599,0.00012999,2]
[421891817,1778301040000,-520.46089033,0.00012999,2]
[421891818,1778301040000,-520.46089033,0.00012999,2]
[421891816,1778301040000,-520.46089033,0.00012999,2]
[421891814,1778301040000,-520.46089033,0.00012999,2]
[421891813,1778301040000,-520.46089033,0.00012999,2]
[421891815,1778301040000,-520.46089033,0.00012999,2]
[421891812,1778301040000,-520.46089033,0.00012999,2]
[421891802,1778301040000,-500.0,0.00012997,2]
[421891806,1778301040000,-451.56382896,0.00012997,2]
[421891803,1778301040000,-500.0,0.00012997,2]
[421891810,1778301040000,-520.46089033,0.00012999,2]
[421891811,1778301040000,-520.46089033,0.00012999,2]
[421891809,1778301040000,-76.01921629,0.00012999,2]
[421891805,1778301040000,-313.59344729,0.00012997,2]
[421891804,1778301040000,-500.0,0.00012997,2]
[421891800,1778301040000,-500.0,0.00012997,2]
[421891824,1778301040000,-580.46239662,0.00013,2]
[421891841,1778301044000,-2185.89669367,0.00013,2]
[421891842,1778301044000,-659.7749991,0.00013,2]
[421891847,1778301047000,-500.0,0.00012996,2]
[421891848,1778301047000,-1354.34679022,0.00013,2]
[421891880,1778302231000,-304.81,9.149e-05,2]
[421891974,1778302238000,-500.0,0.00012992,2]
[421891954,1778302238000,-500.0,0.00012992,2]
[421891964,1778302238000,-500.0,0.00012992,2]
[421891955,1778302238000,-500.0,0.00012992,2]
[421891953,1778302238000,-500.0,0.00012992,2]
[421891963,1778302238000,-500.0,0.00012992,2]
[421891957,1778302238000,-500.0,0.00012992,2]
[421891958,1778302238000,-500.0,0.00012992,2]
[421891956,1778302238000,-1484.91,0.00012992,2]
[421891959,1778302238000,-500.0,0.00012992,2]
[421891960,1778302238000,-500.0,0.00012992,2]
[421891952,1778302238000,-500.0,0.00012992,2]
[421891961,1778302238000,-500.0,0.00012992,2]
[421891962,1778302238000,-500.0,0.00012992,2]
[421891965,1778302238000,-500.0,0.00012992,2]
[421891966,1778302238000,-500.0,0.00012992,2]
[421891968,1778302238000,-500.0,0.00012992,2]
[421891967,1778302238000,-500.0,0.00012992,2]
[421891973,1778302238000,-500.0,0.00012992,2]
[421891969,1778302238000,-237.9,0.00012992,2]
[421891975,1778302238000,-500.0,0.00012993,2]
[421891970,1778302238000,-500.0,0.00012992,2]
[421891972,1778302238000,-486.34,0.00012992,2]
[421891971,1778302238000,-500.0,0.00012992,2]
[421891947,1778302238000,-500.0,0.00012991,2]
[421891934,1778302238000,-500.0,0.00012991,2]
[421891945,1778302238000,-500.0,0.00012991,2]
[421891976,1778302238000,-500.0,0.00012993,2]
[421891923,1778302238000,-4695.19,9.149e-05,2]
[421891935,1778302238000,-500.0,0.00012991,2]
[421891924,1778302238000,-1200.0,9.24e-05,2]
[421891927,1778302238000,-846.63228893,9.334e-05,2]
[421891928,1778302238000,-198.89655041,9.764e-05,2]
[421891926,1778302238000,-300.0,9.333e-05,2]
[421891929,1778302238000,-420.0,0.00010266,2]
[421891932,1778302238000,-500.0,0.00012991,2]
[421891931,1778302238000,-234.69792949,0.00011764,2]
[421891930,1778302238000,-186.13,0.00010959,2]
[421891933,1778302238000,-500.0,0.00012991,2]
[421891936,1778302238000,-500.0,0.00012991,2]
[421891938,1778302238000,-500.0,0.00012991,2]
[421891948,1778302238000,-500.0,0.00012991,2]
[421891937,1778302238000,-500.0,0.00012991,2]
[421891949,1778302238000,-500.0,0.00012992,2]
[421891950,1778302238000,-500.0,0.00012992,2]
[421891946,1778302238000,-500.0,0.00012991,2]
[421891943,1778302238000,-500.0,0.00012991,2]
[421891951,1778302238000,-500.0,0.00012992,2]
[421891941,1778302238000,-500.0,0.00012991,2]
[421891944,1778302238000,-500.0,0.00012991,2]
[421891942,1778302238000,-500.0,0.00012991,2]
[421891977,1778302238000,-500.0,0.00012993,2]
[421891925,1778302238000,-5000.0,9.241e-05,2]
[421891980,1778302238000,-500.0,0.00012993,2]
[421892006,1778302238000,-500.0,0.00012995,2]
[421892010,1778302238000,-235.27019846,0.00012995,2]
[421892012,1778302238000,-603.33308739,0.00012995,2]
[421892007,1778302238000,-185.93,0.00012995,2]
[421892011,1778302238000,-500.0,0.00012995,2]
[421892008,1778302238000,-642.56,0.00012995,2]
[421892014,1778302238000,-500.0,0.00012995,2]
[421892027,1778302238000,-500.0,0.00013,2]
[421892016,1778302238000,-500.0,0.00012995,2]
[421892026,1778302238000,-7270.2694614,0.00013,2]
[421892017,1778302238000,-500.0,0.00012995,2]
[421892009,1778302238000,-500.0,0.00012995,2]
[421892018,1778302238000,-500.0,0.00012996,2]
[421892021,1778302238000,-500.0,0.00012997,2]
[421892023,1778302238000,-7525.5434414,0.00012998,2]
[421892019,1778302238000,-152.0,0.00012996,7]
[421892024,1778302238000,-1439.0945838,0.00012998,2]
[421892025,1778302238000,-3252.7808706,0.00012998,2]
[421892020,1778302238000,-152.0,0.00012996,7]
[421892028,1778302238000,-152.0,0.00013003,30]
[421892029,1778302238000,-600.0,0.0001325,2]
[421892031,1778302238000,-500.0,0.00013265,2]
[421892030,1778302238000,-500.0,0.00013265,2]
[421891979,1778302238000,-169.98956702,0.00012993,2]
[421892022,1778302238000,-500.0,0.00012997,2]
[421892004,1778302238000,-179.58,0.00012995,2]
[421892015,1778302238000,-500.0,0.00012995,2]
[421892002,1778302238000,-195.85,0.00012995,2]
[421892005,1778302238000,-334.1,0.00012995,2]
[421891978,1778302238000,-500.0,0.00012993,2]
[421891985,1778302238000,-500.0,0.00012993,2]
[421891982,1778302238000,-500.0,0.00012993,2]
[421891984,1778302238000,-500.0,0.00012993,2]
[421891983,1778302238000,-500.0,0.00012993,2]
[421891986,1778302238000,-500.0,0.00012993,2]
[421891981,1778302238000,-284.80346697,0.00012993,2]
[421891988,1778302238000,-500.0,0.00012993,2]
[421891989,1778302238000,-500.0,0.00012993,2]
[421891991,1778302238000,-500.0,0.00012993,2]
[421892001,1778302238000,-354.72,0.00012995,2]
[421891987,1778302238000,-502.45660604,0.00012993,2]
[421891990,1778302238000,-500.0,0.00012993,2]
[421892013,1778302238000,-500.0,0.00012995,2]
[421892003,1778302238000,-189.05,0.00012995,2]
[421891996,1778302238000,-500.0,0.00012993,2]
[421891999,1778302238000,-500.0,0.00012993,2]
[421891993,1778302238000,-500.0,0.00012993,2]
[421892000,1778302238000,-500.0,0.00012994,2]
[421891994,1778302238000,-500.0,0.00012993,2]
[421891995,1778302238000,-500.0,0.00012993,2]
[421891998,1778302238000,-1658.8975,0.00012993,2]
[421891992,1778302238000,-500.0,0.00012993,2]
[421891997,1778302238000,-500.0,0.00012993,2]
[421892071,1778302239000,-500.0,0.00013267,2]
[421892073,1778302239000,-500.0,0.00013267,2]
[421892072,1778302239000,-500.0,0.00013267,2]
[421892074,1778302239000,-500.0,0.00013267,2]
[421892070,1778302239000,-500.0,0.00013267,2]
[421892061,1778302239000,-500.0,0.00013266,2]
[421892068,1778302239000,-500.0,0.00013267,2]
[421892065,1778302239000,-500.0,0.00013266,2]
[421892063,1778302239000,-500.0,0.00013266,2]
[421892077,1778302239000,-500.0,0.00013267,2]
[421892067,1778302239000,-217.46,0.00013266,2]
[421892069,1778302239000,-500.0,0.00013267,2]
[421892075,1778302239000,-245.34017056,0.00013267,2]
[421892082,1778302239000,-500.0,0.00013267,2]
[421892078,1778302239000,-500.0,0.00013267,2]
[421892079,1778302239000,-500.0,0.00013267,2]
[421892081,1778302239000,-500.0,0.00013267,2]
[421892080,1778302239000,-500.0,0.00013267,2]
[421892060,1778302239000,-500.0,0.00013266,2]
[421892085,1778302239000,-500.0,0.00013268,2]
[421892084,1778302239000,-1658.8975,0.00013267,2]
[421892083,1778302239000,-500.0,0.00013267,2]
[421892086,1778302239000,-500.0,0.00013269,2]
[421892089,1778302239000,-500.0,0.00013269,2]
[421892090,1778302239000,-500.0,0.00013269,2]
[421892095,1778302239000,-163.94,0.00013536,2]
[421892097,1778302239000,-500.0,0.00013539,2]
[421892076,1778302239000,-500.0,0.00013267,2]
[421892064,1778302239000,-500.0,0.00013266,2]
[421892037,1778302239000,-500.0,0.00013265,2]
[421892059,1778302239000,-500.0,0.00013266,2]
[421892033,1778302239000,-500.0,0.00013265,2]
[421892032,1778302239000,-500.0,0.00013265,2]
[421892034,1778302239000,-500.0,0.00013265,2]
[421892038,1778302239000,-500.0,0.00013265,2]
[421892091,1778302239000,-506.11991675,0.0001327,2]
[421892039,1778302239000,-500.0,0.00013265,2]
[421892040,1778302239000,-500.0,0.00013265,2]
[421892036,1778302239000,-500.0,0.00013265,2]
[421892035,1778302239000,-500.0,0.00013265,2]
[421892041,1778302239000,-500.0,0.00013265,2]
[421892042,1778302239000,-500.0,0.00013265,2]
[421892044,1778302239000,-500.0,0.00013266,2]
[421892046,1778302239000,-500.0,0.00013266,2]
[421892062,1778302239000,-500.0,0.00013266,2]
[421892045,1778302239000,-500.0,0.00013266,2]
[421892049,1778302239000,-500.0,0.00013266,2]
[421892050,1778302239000,-500.0,0.00013266,2]
[421892053,1778302239000,-500.0,0.00013266,2]
[421892051,1778302239000,-1484.91,0.00013266,2]
[421892047,1778302239000,-500.0,0.00013266,2]
[421892043,1778302239000,-500.0,0.00013265,2]
[421892052,1778302239000,-500.0,0.00013266,2]
[421892054,1778302239000,-500.0,0.00013266,2]
[421892066,1778302239000,-500.0,0.00013266,2]
[421892056,1778302239000,-500.0,0.00013266,2]
[421892058,1778302239000,-500.0,0.00013266,2]
[421892057,1778302239000,-500.0,0.00013266,2]
[421892055,1778302239000,-500.0,0.00013266,2]
[421892048,1778302239000,-500.0,0.00013266,2]
[421892093,1778302239000,-500.0,0.00013271,2]
[421892088,1778302239000,-505.76994857,0.00013269,2]
[421892094,1778302239000,-168.96,0.00013506,2]
[421892138,1778302239000,-500.0,0.0001354,2]
[421892147,1778302239000,-245.13,0.00013541,2]
[421892148,1778302239000,-500.0,0.00013542,2]
[421892140,1778302239000,-204.76,0.00013541,2]
[421892149,1778302239000,-500.0,0.00013543,2]
[421892141,1778302239000,-500.0,0.00013541,2]
[421892146,1778302239000,-273.12064797,0.00013541,2]
[421892144,1778302239000,-500.0,0.00013541,2]
[421892142,1778302239000,-560.1215525,0.00013541,2]
[421892145,1778302239000,-500.0,0.00013541,2]
[421892143,1778302239000,-500.0,0.00013541,2]
[421892151,1778302239000,-500.0,0.00013543,2]
[421892162,1778302239000,-151.0,0.00013779,2]
[421892136,1778302239000,-500.0,0.0001354,2]
[421892163,1778302239000,-151.0,0.00013779,2]
[421892156,1778302239000,-270.49930856,0.00013765,2]
[421892155,1778302239000,-1000.0,0.00013699,2]
[421892150,1778302239000,-500.0,0.00013543,2]
[421892159,1778302239000,-537.6845,0.00013779,2]
[421892160,1778302239000,-445.202766,0.00013779,2]
[421892158,1778302239000,-162.380719,0.00013779,2]
[421892153,1778302239000,-177.4,0.00013696,2]
[421892157,1778302239000,-160.17921778,0.00013779,2]
[421892154,1778302239000,-1000.0,0.00013699,2]
[421892165,1778302239000,-151.0,0.00013779,2]
[421892164,1778302239000,-151.0,0.00013779,2]
[421892166,1778302239000,-151.0,0.00013779,2]
[421892087,1778302239000,-500.0,0.00013269,2]
[421892152,1778302239000,-173.06,0.00013627,2]
[421892139,1778302239000,-611.39757308,0.0001354,2]
[421892161,1778302239000,-537.6845,0.00013779,2]
[421892132,1778302239000,-500.0,0.0001354,2]
[421892137,1778302239000,-500.0,0.0001354,2]
[421892096,1778302239000,-500.0,0.00013539,2]
[421892098,1778302239000,-500.0,0.00013539,2]
[421892100,1778302239000,-500.0,0.00013539,2]
[421892105,1778302239000,-500.0,0.00013539,2]
[421892106,1778302239000,-500.0,0.00013539,2]
[421892099,1778302239000,-500.0,0.00013539,2]
[421892110,1778302239000,-356.91937649,0.00013539,2]
[421892108,1778302239000,-500.0,0.00013539,2]
[421892102,1778302239000,-299.90775343,0.00013539,2]
[421892101,1778302239000,-500.0,0.00013539,2]
[421892104,1778302239000,-500.0,0.00013539,2]
[421892103,1778302239000,-500.0,0.00013539,2]
[421892113,1778302239000,-500.0,0.0001354,2]
[421892111,1778302239000,-500.0,0.00013539,2]
[421892092,1778302239000,-500.0,0.00013271,2]
[421892135,1778302239000,-500.0,0.0001354,2]
[421892124,1778302239000,-500.0,0.0001354,2]
[421892134,1778302239000,-500.0,0.0001354,2]
[421892131,1778302239000,-500.0,0.0001354,2]
[421892116,1778302239000,-500.0,0.0001354,2]
[421892126,1778302239000,-1484.91,0.0001354,2]
[421892133,1778302239000,-500.0,0.0001354,2]
[421892130,1778302239000,-500.0,0.0001354,2]
[421892122,1778302239000,-500.0,0.0001354,2]
[421892129,1778302239000,-500.0,0.0001354,2]
[421892120,1778302239000,-221.93608751,0.0001354,2]
[421892118,1778302239000,-500.0,0.0001354,2]
[421892114,1778302239000,-500.0,0.0001354,2]
[421892128,1778302239000,-500.0,0.0001354,2]
[421892214,1778302240000,-151.0,0.00013999,2]
[421892209,1778302240000,-578.20924308,0.00013889,2]
[421892208,1778302240000,-557.5788265,0.00013834,2]
[421892210,1778302240000,-599.60298507,0.00013944,2]
[421892213,1778302240000,-151.0,0.00013999,2]
[421892199,1778302240000,-500.0,0.00013814,2]
[421892211,1778302240000,-621.78829552,0.00013999,2]
[421892207,1778302240000,-175.16,0.00013814,2]
[421892206,1778302240000,-500.0,0.00013814,2]
[421892205,1778302240000,-151.026818,0.00013814,2]
[421892203,1778302240000,-500.0,0.00013814,2]
[421892212,1778302240000,-155.0,0.00013999,2]
[421892204,1778302240000,-500.0,0.00013814,2]
[421892215,1778302240000,-151.0,0.00013999,2]
[421892219,1778302240000,-379.725028,0.00013999,2]
[421892228,1778302240000,-522.49999885,0.00013999,2]
[421892227,1778302240000,-522.49999885,0.00013999,2]
[421892216,1778302240000,-379.725028,0.00013999,2]
[421892218,1778302240000,-379.725028,0.00013999,2]
[421892224,1778302240000,-522.49999885,0.00013999,2]
[421892220,1778302240000,-522.49999885,0.00013999,2]
[421892221,1778302240000,-522.49999885,0.00013999,2]
[421892226,1778302240000,-522.49999885,0.00013999,2]
[421892222,1778302240000,-522.49999885,0.00013999,2]
[421892225,1778302240000,-522.49999885,0.00013999,2]
[421892223,1778302240000,-522.49999885,0.00013999,2]
[421892230,1778302240000,-522.49999885,0.00013999,2]
[421892240,1778302240000,-564.29999877,0.00013999,2]
[421892217,1778302240000,-379.725028,0.00013999,2]
[421892197,1778302240000,-500.0,0.00013814,2]
[421892233,1778302240000,-522.49999885,0.00013999,2]
[421892196,1778302240000,-1484.91,0.00013814,2]
[421892176,1778302240000,-151.0,0.00013779,2]
[421892177,1778302240000,-151.0,0.00013779,2]
[421892175,1778302240000,-151.0,0.00013779,2]
[421892167,1778302240000,-151.0,0.00013779,2]
[421892170,1778302240000,-151.0,0.00013779,2]
[421892169,1778302240000,-151.0,0.00013779,2]
[421892171,1778302240000,-151.0,0.00013779,2]
[421892168,1778302240000,-151.0,0.00013779,2]
[421892172,1778302240000,-217.5174099,0.00013779,2]
[421892174,1778302240000,-151.0,0.00013779,2]
[421892173,1778302240000,-151.0,0.00013779,2]
[421892178,1778302240000,-151.0,0.00013779,2]
[421892180,1778302240000,-151.0,0.00013779,2]
[421892198,1778302240000,-500.0,0.00013814,2]
[421892183,1778302240000,-255.0,0.00013781,3]
[421892182,1778302240000,-161.19271659,0.00013779,2]
[421892179,1778302240000,-151.0,0.00013779,2]
[421892184,1778302240000,-500.0,0.00013813,2]
[421892186,1778302240000,-500.0,0.00013814,2]
[421892185,1778302240000,-500.0,0.00013813,2]
[421892187,1778302240000,-500.0,0.00013814,2]
[421892192,1778302240000,-500.0,0.00013814,2]
[421892202,1778302240000,-500.0,0.00013814,2]
[421892200,1778302240000,-500.0,0.00013814,2]
[421892193,1778302240000,-500.0,0.00013814,2]
[421892201,1778302240000,-500.0,0.00013814,2]
[421892195,1778302240000,-500.0,0.00013814,2]
[421892191,1778302240000,-500.0,0.00013814,2]
[421892181,1778302240000,-151.0,0.00013779,2]
[421892234,1778302240000,-522.49999885,0.00013999,2]
[421892238,1778302240000,-564.29999877,0.00013999,2]
[421892237,1778302240000,-564.29999877,0.00013999,2]
[421892264,1778302240000,-151.0,0.00014,2]
[421892262,1778302240000,-151.0,0.00014,2]
[421892271,1778302240000,-379.725028,0.00014,2]
[421892282,1778302240000,-1484.91,0.00014088,2]
[421892270,1778302240000,-379.725028,0.00014,2]
[421892281,1778302240000,-500.0,0.00014088,2]
[421892272,1778302240000,-379.725028,0.00014,2]
[421892273,1778302240000,-379.725028,0.00014,2]
[421892279,1778302240000,-500.0,0.00014088,2]
[421892277,1778302240000,-644.79446246,0.00014054,2]
[421892275,1778302240000,-379.725028,0.00014,2]
[421892278,1778302240000,-500.0,0.00014087,2]
[421892276,1778302240000,-222990.80731508,0.00014,2]
[421892263,1778302240000,-151.0,0.00014,2]
[421892280,1778302240000,-500.0,0.00014088,2]
[421892284,1778302240000,-319.99172087,0.00014088,2]
[421892286,1778302240000,-500.0,0.00014088,2]
[421892285,1778302240000,-156.77,0.00014088,2]
[421892294,1778302240000,-174.9,0.00014362,2]
[421892287,1778302240000,-500.0,0.00014088,2]
[421892295,1778302240000,-1484.91,0.00014362,2]
[421892289,1778302240000,-668.65185757,0.00014109,2]
[421892290,1778302240000,-768.02541079,0.00014175,2]
[421892291,1778302240000,-151.0,0.000142,2]
[421892292,1778302240000,-151.0,0.000143,2]
[421892293,1778302240000,-500.0,0.00014362,2]
[421892288,1778302240000,-151.0,0.000141,2]
[421892232,1778302240000,-522.49999885,0.00013999,2]
[421892283,1778302240000,-500.0,0.00014088,2]
[421892265,1778302240000,-151.0,0.00014,2]
[421892274,1778302240000,-379.725028,0.00014,2]
[421892261,1778302240000,-155.689925,0.00014,2]
[421892231,1778302240000,-522.49999885,0.00013999,2]
[421892229,1778302240000,-522.49999885,0.00013999,2]
[421892241,1778302240000,-564.29999877,0.00013999,2]
[421892235,1778302240000,-522.49999885,0.00013999,2]
[421892266,1778302240000,-151.0,0.00014,2]
[421892296,1778302240000,-500.0,0.00014362,2]
[421892239,1778302240000,-564.29999877,0.00013999,2]
[421892243,1778302240000,-564.29999877,0.00013999,2]
[421892242,1778302240000,-564.29999877,0.00013999,2]
[421892255,1778302240000,-151.0,0.00014,2]
[421892253,1778302240000,-151.0,0.00014,2]
[421892252,1778302240000,-151.0,0.00014,2]
[421892248,1778302240000,-151.0,0.00014,2]
[421892251,1778302240000,-151.0,0.00014,2]
[421892236,1778302240000,-564.29999877,0.00013999,2]
[421892247,1778302240000,-256310.65062368,0.00014,2]
[421892254,1778302240000,-151.0,0.00014,2]
[421892269,1778302240000,-379.725028,0.00014,2]
[421892258,1778302240000,-151.938436,0.00014,2]
[421892260,1778302240000,-151.0,0.00014,2]
[421892259,1778302240000,-151.0,0.00014,2]
[421892267,1778302240000,-205.29653,0.00014,2]
[421892257,1778302240000,-151.0,0.00014,2]
[421892256,1778302240000,-151.0,0.00014,2]
[421892250,1778302240000,-151.0,0.00014,2]
[421892249,1778302240000,-151.0,0.00014,2]
[421892246,1778302240000,-564.29999877,0.00013999,2]
[421892244,1778302240000,-564.29999877,0.00013999,2]
[421892268,1778302240000,-379.725028,0.00014,2]
[421892313,1778302241000,-151.0,0.00014689,2]
[421892309,1778302241000,-500.0,0.00014636,2]
[421892320,1778302241000,-5000.0,0.00014689,2]
[421892312,1778302241000,-500.0,0.00014636,2]
[421892314,1778302241000,-151.0,0.00014689,2]
[421892311,1778302241000,-500.0,0.00014636,2]
[421892319,1778302241000,-5000.0,0.00014689,2]
[421892310,1778302241000,-1484.91,0.00014636,2]
[421892308,1778302241000,-151.0,0.000146,2]
[421892307,1778302241000,-160.0,0.00014584,2]